bitfinex/quotes_BTCUSD_20250610
["timestamp","ask_amount","ask_price","bid_price","bid_amount"]
[1749538969661,1.76541978,109500.0,109490.0,0.46880238]
[1749538969873,1.76541978,109500.0,109490.0,0.48581586]
[1749538970081,1.76541978,109500.0,109490.0,0.46880125]
[1749538970302,1.76541978,109500.0,109490.0,0.48581473]
[1749538970784,1.76541978,109500.0,109490.0,0.48581437]
[1749538971196,1.76541978,109500.0,109490.0,0.46880089]
[1749538971427,1.76541978,109500.0,109490.0,0.4794325]
[1749538971640,1.76541978,109500.0,109490.0,0.45391446]
[1749538971844,1.76541978,109500.0,109490.0,0.49431791]
[1749538972510,1.76541978,109500.0,109490.0,0.0943166]
[1749538972712,1.76541978,109500.0,109490.0,0.09431464]
[1749538973136,1.76541978,109500.0,109490.0,0.49431464]
[1749538973424,1.76541978,109500.0,109490.0,0.49431412]
[1749538973673,1.76541978,109500.0,109490.0,0.49430979]
[1749538973899,0.66222228,109500.0,109490.0,0.49430979]
[1749538974073,1.26052103,109500.0,109490.0,0.51862979]
[1749538974273,1.76537978,109500.0,109490.0,0.51012513]
[1749538974496,1.76537978,109500.0,109490.0,0.49311616]
[1749538974704,1.76537978,109500.0,109490.0,0.51224332]
[1749538974910,1.76537978,109500.0,109490.0,0.49429906]
[1749538975141,1.76537978,109500.0,109490.0,0.51861918]
[1749538975354,1.76537978,109500.0,109490.0,0.51011829]
[1749538975578,1.76537978,109500.0,109490.0,0.50161728]
[1749538975799,1.76537978,109500.0,109490.0,0.51861939]
[1749538976008,0.75566228,109500.0,109490.0,0.11861939]
[1749538976249,1.76537978,109500.0,109490.0,0.11861882]
[1749538976456,1.76537978,109500.0,109490.0,0.47092131]
[1749538976646,1.76537978,109500.0,109490.0,0.51224335]
[1749538976857,1.76537978,109500.0,109490.0,0.50374255]
[1749538977211,1.76537978,109500.0,109490.0,0.47092135]
[1749538977420,1.76537978,109500.0,109490.0,0.47942245]
[1749538977626,1.76537978,109500.0,109490.0,0.48792345]
[1749538978065,1.76537978,109500.0,109490.0,0.51220346]
[1749538978242,1.76537978,109500.0,109490.0,0.49520148]
[1749538978446,1.76537978,109500.0,109490.0,0.48792339]
[1749538978693,1.76537978,109500.0,109490.0,0.47092136]
[1749538978896,1.76537978,109500.0,109490.0,0.49520143]
[1749538979100,1.76537978,109500.0,109490.0,0.46242045]
[1749538979343,1.76537978,109500.0,109490.0,0.48792327]
[1749538979513,1.76537978,109500.0,109490.0,0.51220327]
[1749538979752,1.76537978,109500.0,109490.0,0.49520139]
[1749538979923,1.76537978,109500.0,109490.0,0.48792223]
[1749538980121,1.76537978,109500.0,109490.0,0.48670045]
[1749538980340,1.76537978,109500.0,109490.0,0.51220256]
[1749538980480,1.76537978,109500.0,109490.0,0.50370186]
[1749538980688,1.76537978,109500.0,109490.0,0.51220256]
[1749538980886,1.76537978,109500.0,109490.0,0.49520115]
[1749538981072,1.76537978,109500.0,109490.0,0.51220256]
[1749538981288,1.76537978,109500.0,109490.0,0.51220281]
[1749538981504,1.76537978,109500.0,109490.0,0.4952014]
[1749538981717,1.76537978,109500.0,109490.0,0.50370236]
[1749538981927,1.76537978,109500.0,109490.0,0.51220287]
[1749538982136,1.76537978,109500.0,109490.0,0.51220301]
[1749538982341,1.76537978,109500.0,109490.0,0.50370237]
[1749538982548,1.76537978,109500.0,109490.0,0.4952014]
[1749538982754,1.76537978,109500.0,109490.0,0.51220331]
[1749538983165,1.76537978,109500.0,109490.0,0.48792381]
[1749538983374,1.76537978,109500.0,109490.0,0.11220481]
[1749538983573,1.76537978,109500.0,109490.0,0.11215023]
[1749538983796,1.76537978,109500.0,109490.0,0.09514734]
[1749538984004,1.76537978,109500.0,109490.0,0.48664591]
[1749538984412,1.76537978,109500.0,109490.0,0.51215257]
[1749538984904,1.76537978,109500.0,109490.0,0.51215252]
[1749538985384,1.76537978,109500.0,109490.0,0.47937032]
[1749538985628,2.28477938,109500.0,109490.0,0.45587947]
[1749538985841,2.31567938,109500.0,109490.0,0.05464591]
[1749538986051,2.31567938,109500.0,109490.0,0.06315165]
[1749538986254,2.31567938,109500.0,109490.0,0.05588849]
[1749538986463,2.31567938,109500.0,109490.0,0.03887165]
[1749538986883,2.31567938,109500.0,109490.0,0.03036591]
[1749538987085,2.31567938,109500.0,109490.0,0.03887489]
[1749538987290,2.31567938,109500.0,109490.0,0.05589759]
[1749538987507,2.31567938,109500.0,109490.0,0.03887726]
[1749538987722,2.31567938,109500.0,109490.0,0.01710582]
[1749538988548,2.31567938,109500.0,109490.0,0.00859445]
[1749538989347,2.31567938,109500.0,109490.0,0.01711305]
[1749538989779,2.31567938,109500.0,109490.0,0.00859445]
[1749538991785,2.22223938,109500.0,109490.0,0.00859445]
[1749538991990,2.31563938,109500.0,109490.0,0.00859445]
[1749538992410,2.22223938,109500.0,109490.0,0.00859445]
[1749538992634,2.31563938,109500.0,109490.0,0.00859445]
[1749539000375,2.22223938,109500.0,109490.0,0.00859445]
[1749539000640,2.30641761,109500.0,109490.0,0.00859445]
[1749539001306,2.21301761,109500.0,109490.0,0.00859445]
[1749539001529,2.30641761,109500.0,109490.0,0.00859445]
[1749539002509,2.31563886,109500.0,109490.0,0.00859445]
[1749539006638,1.81078011,109500.0,109490.0,0.00859445]
[1749539007367,1.71738011,109500.0,109490.0,0.00859445]
[1749539007541,1.81078011,109500.0,109490.0,0.00859445]
[1749539008889,2.31563886,109500.0,109490.0,0.00859445]
[1749539009436,2.31563886,109500.0,109490.0,0.01711246]
[1749539009648,2.31563886,109500.0,109490.0,0.00859445]
[1749539009852,2.31563886,109500.0,109490.0,0.01711245]
[1749539010261,2.31563886,109500.0,109490.0,0.01711249]
[1749539010708,2.31563886,109500.0,109490.0,0.00859445]
[1749539011228,2.31563886,109500.0,109490.0,0.01711459]
[1749539011882,2.22223886,109500.0,109490.0,0.01711459]
[1749539012037,2.31563886,109500.0,109490.0,0.01711459]
[1749539012238,1.81078011,109500.0,109490.0,0.01711459]
[1749539012573,1.81078011,109500.0,109490.0,0.00859445]
[1749539012718,1.81078011,109500.0,109490.0,0.01711428]
[1749539012924,1.81078011,109500.0,109490.0,0.03417505]
[1749539013771,1.81078011,109500.0,109490.0,0.03417485]
[1749539014190,1.81078011,109500.0,109490.0,0.01712126]
[1749539014386,1.81078011,109500.0,109490.0,0.01712122]
[1749539014616,1.81078011,109500.0,109490.0,0.03417463]
[1749539015022,1.79568011,109500.0,109490.0,0.03417463]
[1749539015455,0.67676261,109500.0,109490.0,0.05600077]
[1749539015651,1.77988011,109500.0,109490.0,0.08650077]
[1749539015833,1.68648011,109500.0,109490.0,0.06092059]
[1749539016072,1.77988011,109500.0,109490.0,0.06092059]
[1749539016279,1.77988011,109500.0,109490.0,0.06944839]
[1749539016488,1.77988011,109500.0,109490.0,0.09289984]
[1749539016692,1.77988011,109500.0,109490.0,0.09290049]
[1749539017266,1.68648011,109500.0,109490.0,0.08650342]
[1749539017580,1.77988011,109500.0,109490.0,0.08437159]
[1749539017915,0.75562176,109500.0,109490.0,0.12010197]
[1749539018115,1.26048051,109500.0,109490.0,0.08813492]
[1749539018538,1.26048051,109500.0,109490.0,0.12009663]
[1749539018893,1.26048051,109500.0,109490.0,0.09287279]
[1749539019320,1.26048051,109500.0,109490.0,0.12014358]
[1749539019647,1.76533926,109500.0,109490.0,0.08648078]
[1749539019843,1.76533926,109500.0,109490.0,0.07795782]
[1749539020172,1.76533926,109500.0,109490.0,0.08435034]
[1749539020450,1.76533926,109500.0,109490.0,0.09287371]
[1749539020644,1.76533926,109500.0,109490.0,0.1204933]
[1749539021171,1.76533926,109500.0,109490.0,0.11409334]
[1749539021369,1.76533926,109500.0,109490.0,0.11409234]
[1749539021572,1.76533926,109500.0,109490.0,0.1204821]
[1749539021802,1.76533926,109500.0,109490.0,0.49705296]
[1749539021983,1.76533926,109500.0,109490.0,0.52048202]
[1749539022183,1.76533926,109500.0,109490.0,0.52048193]
[1749539022632,1.76533926,109500.0,109490.0,0.52048176]
[1749539023074,1.76533926,109500.0,109490.0,0.50557268]
[1749539023299,1.76533926,109500.0,109490.0,0.49705264]
[1749539023484,1.76533926,109500.0,109490.0,0.48853335]
[1749539023936,1.76533926,109500.0,109490.0,0.52047995]
[1749539024869,1.76533926,109500.0,109490.0,0.12047524]
[1749539025270,1.76533926,109500.0,109490.0,0.52047224]
[1749539025466,1.76533926,109500.0,109490.0,0.52047221]
[1749539025705,1.76533926,109500.0,109490.0,0.51195385]
[1749539026077,1.76533926,109500.0,109490.0,0.52046921]
[1749539027311,1.76533926,109500.0,109490.0,0.52046923]
[1749539027536,1.76533926,109500.0,109490.0,0.52046867]
[1749539027738,1.76533926,109500.0,109490.0,0.48853335]
[1749539027945,1.76533926,109500.0,109490.0,0.45803335]
[1749539028156,1.76533926,109500.0,109490.0,0.48873335]
[1749539028609,1.76533926,109500.0,109490.0,0.12066774]
[1749539029034,1.76533926,109500.0,109490.0,0.52066774]
[1749539029276,1.76533926,109500.0,109490.0,0.52066785]
[1749539029535,1.76533926,109500.0,109490.0,0.5206676]
[1749539029742,1.76533926,109500.0,109490.0,0.51215163]
[1749539030001,1.76533926,109500.0,109490.0,0.52066721]
[1749539030205,1.76533926,109500.0,109490.0,0.52066625]
[1749539030407,1.76533926,109500.0,109490.0,0.52066622]
[1749539031246,1.76533926,109500.0,109490.0,0.52066614]
[1749539031403,1.76533926,109500.0,109490.0,0.52066617]
[1749539031818,1.26048051,109500.0,109490.0,0.5206648]
[1749539032016,1.26048051,109500.0,109490.0,0.10363466]
[1749539032263,1.26048051,109500.0,109490.0,0.11214968]
[1749539032423,1.26048051,109500.0,109490.0,0.48996471]
[1749539033088,1.26048051,109500.0,109490.0,0.46234244]
[1749539033295,1.26048051,109500.0,109490.0,0.46234298]
[1749539033495,1.26048051,109500.0,109490.0,0.44531275]
[1749539033718,1.26048051,109500.0,109490.0,0.46234382]
[1749539033919,1.26048051,109500.0,109490.0,0.43679803]
[1749539034148,1.26048051,109500.0,109490.0,0.46234585]
[1749539035250,1.26048051,109500.0,109490.0,0.46234571]
[1749539035446,1.26048051,109500.0,109490.0,0.04744281]
[1749539035647,1.26048051,109500.0,109490.0,0.0623457]
[1749539035869,1.26048051,109500.0,109490.0,0.06234572]
[1749539036085,1.26048051,109500.0,109490.0,0.06959406]
[1749539036270,1.26048051,109500.0,109490.0,0.08662608]
[1749539036441,1.26048051,109500.0,109490.0,0.08662994]
[1749539036644,1.26048051,109500.0,109490.0,0.08663093]
[1749539036847,1.26048051,109500.0,109490.0,0.06235093]
[1749539036848,1.81108011,109500.0,109490.0,0.06235093]
[1749539037052,1.81108011,109500.0,109490.0,0.05383412]
[1749539037288,1.81108011,109500.0,109490.0,0.05596424]
[1749539038444,1.81108011,109500.0,109490.0,0.05596509]
[1749539038651,1.81108011,109500.0,109490.0,0.0559651]
[1749539038852,1.81108011,109500.0,109490.0,0.05596274]
[1749539039309,1.81108011,109500.0,109490.0,0.05596649]
[1749539039750,1.29092136,109500.0,109490.0,0.0559661]
[1749539039865,1.27502136,109500.0,109490.0,0.0559661]
[1749539040068,1.27502136,109500.0,109490.0,0.05596558]
[1749539040273,1.27502136,109500.0,109490.0,0.05596372]
[1749539040472,1.27502136,109500.0,109490.0,0.4559637]
[1749539040696,1.27502136,109500.0,109490.0,0.44744412]
[1749539040942,0.77016261,109500.0,109490.0,0.45596375]
[1749539041385,1.27502136,109500.0,109490.0,0.45596375]
[1749539042014,1.27502136,109500.0,109490.0,0.45596373]
[1749539043049,1.27502136,109500.0,109490.0,0.45596405]
[1749539043625,1.27502136,109500.0,109490.0,0.03892481]
[1749539043906,1.27502136,109500.0,109490.0,0.05596774]
[1749539044301,1.27502136,109500.0,109490.0,0.45596774]
[1749539044510,1.27502136,109500.0,109490.0,0.45596925]
[1749539044636,1.27502136,109500.0,109490.0,0.45596999]
[1749539045056,1.27502136,109500.0,109490.0,0.45597044]
[1749539045307,1.27502136,109500.0,109490.0,0.44745245]
[1749539045671,1.27502136,109500.0,109490.0,0.45597624]
[1749539045880,1.27502136,109500.0,109490.0,0.43040486]
[1749539046083,1.27502136,109500.0,109490.0,0.45597687]
[1749539046281,1.81188011,109500.0,109490.0,0.05597687]
[1749539046486,1.81188011,109500.0,109490.0,0.05597696]
[1749539046686,0.80216261,109500.0,109490.0,0.45597696]
[1749539046914,1.81188011,109500.0,109490.0,0.44745311]
[1749539047246,1.81188011,109500.0,109490.0,0.03040486]
[1749539047533,1.81188011,109500.0,109490.0,0.04745312]
[1749539047666,1.81188011,109500.0,109490.0,0.05597725]
[1749539047882,1.81188011,109500.0,109490.0,0.0559768]
[1749539048540,1.81188011,109500.0,109490.0,0.05597656]
[1749539048744,1.71848011,109500.0,109490.0,0.04745258]
[1749539048948,1.81184011,109500.0,109490.0,0.03892874]
[1749539049149,1.81184011,109500.0,109490.0,0.03040486]
[1749539049352,1.81184011,109500.0,109490.0,0.05597651]
[1749539050166,1.81184011,109500.0,109490.0,0.03892874]
[1749539050360,1.81184011,109500.0,109490.0,0.05597651]
[1749539050605,1.81184011,109500.0,109490.0,0.05597647]
[1749539050766,1.81184011,109500.0,109490.0,0.05597639]
[1749539051175,1.81184011,109500.0,109490.0,0.03892962]
[1749539051399,1.81184011,109500.0,109490.0,0.05598092]
[1749539051931,1.81184011,109500.0,109490.0,0.05598397]
[1749539052143,1.81184011,109500.0,109490.0,0.03040486]
[1749539052350,1.81184011,109500.0,109490.0,0.03893151]
[1749539052554,1.81184011,109500.0,109490.0,0.05598482]
[1749539052958,2.31669886,109500.0,109490.0,0.05598482]
[1749539053175,1.81184011,109500.0,109490.0,0.0171223]
[1749539053374,1.81184011,109500.0,109490.0,0.00859445]
[1749539053575,1.81184011,109500.0,109490.0,0.02565061]
[1749539053794,1.81184011,109500.0,109490.0,0.03417869]
[1749539054009,1.81184011,109500.0,109490.0,0.03417938]
[1749539054184,1.81184011,109500.0,109490.0,0.02565107]
[1749539054395,2.31669886,109500.0,109490.0,0.02564673]
[1749539054619,0.80212261,109500.0,109490.0,0.02564673]
[1749539054786,1.81184011,109500.0,109490.0,0.02564673]
[1749539055010,1.81184011,109500.0,109490.0,0.00859445]
[1749539055210,1.81184011,109500.0,109490.0,0.02564677]
[1749539055211,0.80212261,109500.0,109490.0,0.02564677]
[1749539055423,1.81184011,109500.0,109490.0,0.02564676]
[1749539056428,1.81184011,109500.0,109490.0,0.00859445]
[1749539060919,1.81184011,109500.0,109490.0,0.03416691]
[1749539061332,1.68648011,109500.0,109490.0,0.01711873]
[1749539061523,1.77980011,109500.0,109490.0,0.03894092]
[1749539061716,1.77980011,109500.0,109490.0,0.03041691]
[1749539061950,1.77980011,109500.0,109490.0,0.05598872]
[1749539062147,1.77980011,109500.0,109490.0,0.05598975]
[1749539062782,1.77980011,109500.0,109490.0,0.05599021]
[1749539062992,1.77980011,109500.0,109490.0,0.04746578]
[1749539063347,1.77980011,109500.0,109490.0,0.05599305]
[1749539063542,1.77980011,109500.0,109490.0,0.03894229]
[1749539063748,1.77980011,109500.0,109490.0,0.05599405]
[1749539064129,1.77980011,109500.0,109490.0,0.05599458]
[1749539064545,1.81080011,109500.0,109490.0,0.05599461]
[1749539064755,1.81080011,109500.0,109490.0,0.055995]
[1749539064967,1.81080011,109500.0,109490.0,0.03041691]
[1749539065174,1.81080011,109500.0,109490.0,0.05599536]
[1749539065375,1.81080011,109500.0,109490.0,0.03041691]
[1749539065793,1.81080011,109500.0,109490.0,0.05599533]
[1749539066384,1.79540011,109500.0,109490.0,0.04747189]
[1749539066588,1.79540011,109500.0,109490.0,0.03894439]
[1749539066795,1.79540011,109500.0,109490.0,0.04747187]
[1749539067000,1.79540011,109500.0,109490.0,0.05600004]
[1749539067661,1.79540011,109500.0,109490.0,0.0474724]
[1749539067869,1.79540011,109500.0,109490.0,0.05600053]
[1749539068275,1.79540011,109500.0,109490.0,0.03894504]
[1749539068687,1.79540011,109500.0,109490.0,0.05600152]
[1749539069312,1.77980011,109500.0,109490.0,0.05600152]
[1749539069508,1.77980011,109500.0,109490.0,0.05600605]
[1749539069949,1.77980011,109500.0,109490.0,0.05600838]
[1749539070589,1.79570011,109500.0,109490.0,0.05600838]
[1749539070792,1.81140011,109500.0,109490.0,0.05600838]
[1749539071201,1.79570011,109500.0,109490.0,0.05600838]
[1749539071700,1.79570011,109500.0,109490.0,0.0389474]
[1749539071935,1.79570011,109500.0,109490.0,0.05600928]
[1749539072132,1.79570011,109500.0,109490.0,0.05600884]
[1749539072272,1.79570011,109500.0,109490.0,0.05600877]
[1749539072697,0.78598261,109500.0,109490.0,0.05600897]
[1749539072921,1.70238011,109500.0,109490.0,0.05600897]
[1749539073075,1.77980011,109500.0,109490.0,0.05600897]
[1749539073281,1.77980011,109500.0,109490.0,0.05600934]
[1749539073487,1.67193926,109500.0,109490.0,0.03041691]
[1749539073694,1.76525926,109500.0,109490.0,0.07034767]
[1749539073929,1.76525926,109500.0,109490.0,0.07887821]
[1749539074186,0.75554176,109500.0,109490.0,0.07200885]
[1749539074376,1.76525926,109500.0,109490.0,0.05600885]
[1749539074711,1.76533926,109500.0,109490.0,0.48750885]
[1749539075124,1.76533926,109500.0,109490.0,0.08750885]
[1749539075331,1.76533926,109500.0,109490.0,0.0875101]
[1749539075528,1.76533926,109500.0,109490.0,0.08751024]
[1749539075752,1.76533926,109500.0,109490.0,0.08751013]
[1749539076039,1.76533926,109500.0,109490.0,0.07044797]
[1749539076249,1.76533926,109500.0,109490.0,0.06191691]
[1749539076651,1.76533926,109500.0,109490.0,0.08751011]
[1749539076916,1.76533926,109500.0,109490.0,0.07897906]
[1749539077198,1.76533926,109500.0,109490.0,0.07044796]
[1749539077352,1.76533926,109500.0,109490.0,0.08751024]
[1749539077930,1.76533926,109500.0,109490.0,0.08751036]
[1749539078137,1.76533926,109500.0,109490.0,0.08751064]
[1749539078552,1.76533926,109500.0,109490.0,0.05601064]
[1749539078749,1.76533926,109500.0,109490.0,0.03041691]
[1749539079190,1.76533926,109500.0,109490.0,0.44748032]
[1749539079404,1.76533926,109500.0,109490.0,0.43041691]
[1749539079615,1.76533926,109500.0,109490.0,0.45601202]
[1749539079821,1.76533926,109500.0,109490.0,0.43041691]
[1749539080228,1.76533926,109500.0,109490.0,0.44748032]
[1749539080434,1.76533926,109500.0,109490.0,0.43041691]
[1749539081465,1.76533926,109500.0,109490.0,0.4560137]
[1749539081674,1.76533926,109500.0,109490.0,0.0713137]
[1749539081873,1.76533926,109500.0,109490.0,0.07131369]
[1749539082202,1.76533926,109500.0,109490.0,0.05424917]
[1749539082403,1.76533926,109500.0,109490.0,0.04571691]
[1749539082632,1.76533926,109500.0,109490.0,0.07131358]
[1749539082845,1.76533926,109500.0,109490.0,0.05424914]
[1749539083045,1.76533926,109500.0,109490.0,0.07131393]
[1749539083425,1.76533926,109500.0,109490.0,0.05601393]
[1749539083809,0.75562176,109500.0,109490.0,0.07251393]
[1749539084012,1.76533926,109500.0,109490.0,0.07251393]
[1749539084428,1.76533926,109500.0,109490.0,0.06398204]
[1749539084632,1.76533926,109500.0,109490.0,0.0725146]
[1749539084839,1.76533926,109500.0,109490.0,0.07251478]
[1749539085257,1.42533926,109500.0,109490.0,0.07251478]
[1749539085646,1.76533926,109500.0,109490.0,0.45601478]
[1749539086402,1.76533926,109500.0,109490.0,0.43894947]
[1749539086676,1.76533926,109500.0,109490.0,0.45601623]
[1749539087430,1.79302433,109500.0,109490.0,0.45601623]
[1749539088010,1.79302433,109500.0,109490.0,0.05601623]
[1749539088418,1.79302433,109500.0,109490.0,0.03041691]
[1749539088595,1.79302433,109500.0,109490.0,0.45602156]
[1749539088812,1.79302433,109500.0,109490.0,0.43041691]
[1749539088997,1.79302433,109500.0,109490.0,0.4560272]
[1749539089417,1.79302433,109500.0,109490.0,0.43041691]
[1749539089631,1.79302433,109500.0,109490.0,0.45602743]
[1749539090137,1.79302433,109500.0,109490.0,0.44749059]
[1749539090332,1.79302433,109500.0,109490.0,0.45602743]
[1749539090657,1.79302433,109500.0,109490.0,0.44749059]
[1749539090838,1.79302433,109500.0,109490.0,0.45602743]
[1749539091246,1.79302433,109500.0,109490.0,0.45602742]
[1749539091449,1.79302433,109500.0,109490.0,0.05602742]
[1749539091681,1.79302433,109500.0,109490.0,0.05602797]
[1749539091885,1.79294433,109500.0,109490.0,0.03041691]
[1749539092068,1.79294433,109500.0,109490.0,0.46243185]
[1749539092296,1.79294433,109500.0,109490.0,0.06243191]
[1749539092531,1.79294433,109500.0,109490.0,0.05602947]
[1749539092747,1.79294433,109500.0,109490.0,0.08629541]
[1749539092949,1.79294433,109500.0,109490.0,0.09483446]
[1749539093582,1.79294433,109500.0,109490.0,0.08843425]
[1749539093762,1.79294433,109500.0,109490.0,0.03895596]
[1749539094027,1.79294433,109500.0,109490.0,0.04536021]
[1749539094288,1.79294433,109500.0,109490.0,0.06243822]
[1749539094556,1.79294433,109500.0,109490.0,0.06247585]
[1749539094787,1.79294433,109500.0,109490.0,0.06247579]
[1749539095690,1.80748518,109500.0,109490.0,0.06247579]
[1749539095919,1.83788518,109500.0,109490.0,0.05607172]
[1749539096146,1.83788518,109500.0,109490.0,0.0389938]
[1749539096376,1.83788518,109500.0,109490.0,0.05607237]
[1749539096623,1.83788518,109500.0,109490.0,0.05607239]
[1749539097291,1.83788518,109500.0,109490.0,0.04753347]
[1749539097543,1.83788518,109500.0,109490.0,0.05607293]
[1749539097777,1.83788518,109500.0,109490.0,0.04756704]
[1749539098688,1.83788518,109500.0,109490.0,0.03902767]
[1749539098899,1.83788518,109500.0,109490.0,0.0390283]
[1749539099129,1.83788518,109500.0,109490.0,0.04756817]
[1749539099872,1.83788518,109500.0,109490.0,0.0475683]
[1749539100285,1.83788518,109500.0,109490.0,0.04756846]
[1749539100503,1.83788518,109500.0,109490.0,0.04756849]
[1749539100712,1.83788518,109500.0,109490.0,0.03902851]
[1749539100911,1.83788518,109500.0,109490.0,0.04756849]
[1749539101115,1.83788518,109500.0,109490.0,0.0475692]
[1749539101732,1.83788518,109500.0,109490.0,0.04757056]
[1749539102135,1.83788518,109500.0,109490.0,0.04757053]
[1749539102360,1.83788518,109500.0,109490.0,0.03048921]
[1749539102647,1.83788518,109500.0,109490.0,0.04757023]
[1749539103244,1.83788518,109500.0,109490.0,0.04757072]
[1749539103449,1.83788518,109500.0,109490.0,0.03902957]
[1749539103659,2.34274393,109500.0,109490.0,0.04757207]
[1749539103864,1.83788518,109500.0,109490.0,8.846e-05]
[1749539104089,1.83788518,109500.0,109490.0,0.04757506]
[1749539104341,1.83788518,109500.0,109490.0,0.04757177]
[1749539104951,1.83788518,109500.0,109490.0,0.04757196]
[1749539105186,1.83788518,109500.0,109490.0,0.03903077]
[1749539105388,1.83788518,109500.0,109490.0,0.04757038]
[1749539106208,1.83788518,109500.0,109490.0,0.04757037]
[1749539106416,1.83788518,109500.0,109490.0,0.04756944]
[1749539106827,1.83788518,109500.0,109490.0,0.02195154]
[1749539107035,1.83788518,109500.0,109490.0,0.04756794]
[1749539107240,1.83788518,109500.0,109490.0,0.04756804]
[1749539107464,1.83788518,109500.0,109490.0,0.04756825]
[1749539108303,1.83788518,109500.0,109490.0,0.03902935]
[1749539108501,1.83788518,109500.0,109490.0,0.04756813]
[1749539108720,1.83788518,109500.0,109490.0,0.04756785]
[1749539108963,1.83788518,109500.0,109490.0,0.02195154]
[1749539109169,1.83788518,109500.0,109490.0,0.03902865]
[1749539109372,1.83788518,109500.0,109490.0,0.04756665]
[1749539109777,1.83788518,109500.0,109490.0,0.04756669]
[1749539110171,1.83788518,109500.0,109490.0,0.04756678]
[1749539110571,1.83788518,109500.0,109490.0,0.02195154]
[1749539110775,1.83788518,109500.0,109490.0,0.04756674]
[1749539111106,1.83788518,109500.0,109490.0,0.04756662]
[1749539111581,1.83788518,109500.0,109490.0,0.04756637]
[1749539111816,1.82334433,109500.0,109490.0,0.04756637]
[1749539112040,1.83788518,109500.0,109490.0,0.04756637]
[1749539112259,1.83788518,109500.0,109490.0,0.04756636]
[1749539112485,1.83788518,109500.0,109490.0,0.03902782]
[1749539112735,1.83788518,109500.0,109490.0,0.04756596]
[1749539112956,1.83788518,109500.0,109490.0,0.04756597]
[1749539113400,1.83788518,109500.0,109490.0,0.03902783]
[1749539113636,1.83788518,109500.0,109490.0,0.03048968]
[1749539113853,1.83788518,109500.0,109490.0,0.03902783]
[1749539114313,1.83788518,109500.0,109490.0,0.04756597]
[1749539114539,1.83788518,109500.0,109490.0,0.04756594]
[1749539114747,1.83788518,109500.0,109490.0,0.02570286]
[1749539115157,1.83788518,109500.0,109490.0,0.00862707]
[1749539115375,1.83788518,109500.0,109490.0,0.02570428]
[1749539115625,1.83788518,109500.0,109490.0,0.01716567]
[1749539116032,1.83788518,109500.0,109490.0,0.02570427]
[1749539116662,1.83788518,109500.0,109490.0,0.02570228]
[1749539116869,1.83788518,109500.0,109490.0,0.02570221]
[1749539117068,1.83788518,109500.0,109490.0,0.02570216]
[1749539118181,1.83788518,109500.0,109490.0,0.01716426]
[1749539118407,1.83788518,109500.0,109490.0,0.02570216]
[1749539118640,1.83788518,109500.0,109490.0,8.846e-05]
[1749539118837,1.83788518,109500.0,109490.0,0.02570216]
[1749539119403,1.83788518,109500.0,109490.0,0.01716426]
[1749539119639,1.83788518,109500.0,109490.0,0.02570176]
[1749539119795,1.83788518,109500.0,109490.0,0.02570096]
[1749539120225,1.82248518,109500.0,109490.0,0.02570096]
[1749539120806,1.82248518,109500.0,109490.0,0.00862596]
[1749539121003,1.83808518,109500.0,109490.0,0.02570084]
[1749539121232,1.83808518,109500.0,109490.0,0.01716334]
[1749539121678,1.83808518,109500.0,109490.0,0.00862599]
[1749539121811,1.83808518,109500.0,109490.0,0.02570105]
[1749539122847,1.74476518,109500.0,109490.0,0.02570105]
[1749539123094,1.83808518,109500.0,109490.0,0.0257013]
[1749539123620,1.83808518,109500.0,109490.0,0.02570355]
[1749539124479,1.83808518,109500.0,109490.0,0.0086275]
[1749539124866,1.83808518,109500.0,109490.0,0.02570559]
[1749539125251,1.83808518,109500.0,109490.0,0.02570576]
[1749539125617,1.83808518,109500.0,109490.0,0.02570585]
[1749539125816,1.83808518,109500.0,109490.0,0.01716672]
[1749539126061,1.83808518,109500.0,109490.0,0.02570584]
[1749539126233,1.83808518,109500.0,109490.0,0.02570627]
[1749539126439,1.83808518,109500.0,109490.0,0.01716715]
[1749539126642,1.83808518,109500.0,109490.0,0.01716729]
[1749539127036,1.83808518,109500.0,109490.0,0.0257067]
[1749539127615,1.83808518,109500.0,109490.0,0.0257078]
[1749539127821,1.83808518,109500.0,109490.0,0.03903187]
[1749539128047,1.83808518,109500.0,109490.0,0.04757184]
[1749539128423,1.83808518,109500.0,109490.0,0.04757185]
[1749539128779,1.83808518,109500.0,109490.0,0.04757205]
[1749539129441,1.82248518,109500.0,109490.0,0.04757205]
[1749539129645,1.82248518,109500.0,109490.0,0.04757291]
[1749539130244,1.82248518,109500.0,109490.0,0.04757531]
[1749539130388,1.82248518,109500.0,109490.0,0.04757586]
[1749539131161,1.82248518,109500.0,109490.0,0.0475775]
[1749539131715,1.82248518,109500.0,109490.0,0.04757934]
[1749539132150,1.80748518,109500.0,109490.0,0.04757934]
[1749539132355,1.80748518,109500.0,109490.0,0.04758138]
[1749539132757,1.80748518,109500.0,109490.0,0.04758351]
[1749539133175,1.80748518,109500.0,109490.0,0.04758353]
[1749539133377,1.82368518,109500.0,109490.0,0.04758353]
[1749539133580,1.82368518,109500.0,109490.0,0.04758351]
[1749539133790,1.82368518,109500.0,109490.0,0.04758352]
[1749539134205,1.82368518,109500.0,109490.0,0.0475835]
[1749539134856,1.82368518,109500.0,109490.0,0.02195195]
[1749539135217,1.82368518,109500.0,109490.0,0.04758353]
[1749539135817,1.82368518,109500.0,109490.0,0.04758376]
[1749539135818,2.34354393,109500.0,109490.0,0.04758376]
[1749539136232,2.34354393,109500.0,109490.0,0.02195195]
[1749539136433,2.34354393,109500.0,109490.0,0.0475836]
[1749539136755,2.34354393,109500.0,109490.0,0.02195195]
[1749539137008,2.34354393,109500.0,109490.0,0.03049584]
[1749539137210,2.34354393,109500.0,109490.0,0.04758362]
[1749539137973,2.34354393,109500.0,109490.0,0.04758369]
[1749539138200,2.34354393,109500.0,109490.0,0.03049587]
[1749539138410,2.34354393,109500.0,109490.0,0.0390398]
[1749539138611,2.34354393,109500.0,109490.0,0.04758372]
[1749539138783,2.34354393,109500.0,109490.0,0.02195195]
[1749539139016,2.34354393,109500.0,109490.0,0.04758372]
[1749539139454,1.83868518,109500.0,109490.0,0.04758372]
[1749539140087,1.83868518,109500.0,109490.0,0.0390398]
[1749539140292,1.83868518,109500.0,109490.0,0.04758372]
[1749539140712,1.83868518,109500.0,109490.0,0.02195195]
[1749539140916,1.83868518,109500.0,109490.0,0.0304959]
[1749539141092,1.83868518,109500.0,109490.0,0.04758494]
[1749539141320,1.83868518,109500.0,109490.0,0.03049628]
[1749539141527,1.83868518,109500.0,109490.0,0.04758481]
[1749539141953,1.83868518,109500.0,109490.0,0.03904048]
[1749539142126,1.83868518,109500.0,109490.0,0.03049621]
[1749539142505,1.83868518,109500.0,109490.0,0.04758474]
[1749539142709,1.83868518,109500.0,109490.0,0.04758464]
[1749539142889,1.83868518,109500.0,109490.0,0.03904048]
[1749539143151,1.83868518,109500.0,109490.0,0.04758463]
[1749539143514,1.83868518,109500.0,109490.0,0.04758439]
[1749539143851,1.83868518,109500.0,109490.0,0.04758385]
[1749539144703,1.83868518,109500.0,109490.0,0.04758424]
[1749539145256,1.83868518,109500.0,109490.0,0.04758409]
[1749539145664,1.83868518,109500.0,109490.0,0.04758524]
[1749539145840,1.83868518,109500.0,109490.0,0.02195195]
[1749539146697,1.83868518,109500.0,109490.0,0.04757957]